[Event "37th ECCC 2022"]
[Site "Mayrhofen"]
[Date "2022.10.06"]
[Round "4.53"]
[White "Mindlin, Alon"]
[Black "de Francesco, Klaus"]
[Result "1/2-1/2"]
[ECO "D60"]
[WhiteElo "2426"]
[BlackElo "2197"]
[Annotator "TA"]
[PlyCount "75"]
[EventDate "2022.10.03"]
[EventType "team-tourn"]
[EventCountry "AUT"]
[SourceTitle "playchess.com"]
[Source "ChessBase"]
[SourceQuality "1"]
[TimeControl "40/5400+30:1800+30"]

{[%evp 13,75,10,45,35,42,44,41,42,38,29,54,41,79,38,46,31,68,13,71,60,66,64,51,38,65,32,34,0,8,7,12,20,15,16,14,17,14,0,0,0,33,28,21,0,0,0,0,0,0,0,0,0,0,0,0,0,0,0,0,0,0,0,0,-5]} 1. d4 {[%emt 0:00:13]} d5 {[%emt 0:00:15]} 2. c4 {[%emt 0:00:05]} e6 {[%emt 0:00:06]} 3. Nf3 {[%emt 0:00:06]} Nf6 {[%emt 0:00:15]} 4. Nc3 {[%emt 0:00:25]} Be7 {[%emt 0:00:41]} 5. Bg5 {[%emt 0:00:58]} Nbd7 {[%emt 0:00:31]} 6. e3 {[%emt 0:00:23]} O-O {[%emt 0:00:51]} 7. Bd3 {[%emt 0:00:28]} a6 {[%emt 0:01:32]} 8. c5 {[%emt 0:04:10] D60: Queen's Gambit Declined: Classical: Unusual White 7th moves.} c6 {[%emt 0:00:34][%cal Oe6e5]} 9. O-O {[%emt 0:02:52]} b6 {[%emt 0:03:18]} 10. cxb6 {[%emt 0:02:00] White is slightly better.} c5 {[%emt 0:00:18]} 11. Rc1 {[%emt 0:13:14][%cal Ba1c1,Bc1c3,Bc3b3][%mdl 32] [#]} cxd4 $146 {[%emt 0:03:10]} ({Predecessor:} 11... c4 12. Bb1 Qxb6 13. Rc2 Re8 14. Rd2 Bb7 15. Ne5 Nxe5 16. dxe5 Nd7 17. Bxe7 Rxe7 18. Qh5 f5 19. exf6 Nxf6 {½-½ (33) Pacher,M (2436)-Cvek,R (2540) Czech Republic 2013}) 12. exd4 {[%emt 0:00:30]} Qxb6 {[%emt 0:02:12]} 13. Na4 {[%emt 0:01:24]} Qb8 {[%emt 0:02:13]} 14. Rc3 {[%emt 0:08:41][%cal Of3e5]} Bd6 {[%emt 0:06:37] Inhibits Ne5.} 15. Qc2 {[%emt 0:00:35]} (15. Rb3 $1 $14 Qa7 16. Qc2) 15... Bb7 {[%emt 0:11:17]} (15... Ne4 $11) 16. Nc5 $16 {[%emt 0:14:42]} h6 {[%emt 0:01:15]} 17. Bxf6 {[%emt 0:02:31] White has more active pieces. The black rooks are badly placed.} Nxf6 {[%emt 0:00:10]} 18. Rb3 {[%emt 0:03:26]} Bxc5 {[%emt 0:00:15]} 19. Qxc5 {[%emt 0:01:20] [#] Hoping for Qb6.} (19. dxc5 $5 {[%cal Rc5c6]} Qc7 20. Rc1 $14) 19... Rc8 {[%emt 0:18:02]} 20. Qb6 {[%emt 0:02:41]} Rc7 {[%emt 0:00:28]} 21. Ne5 {[%emt 0:12:37][%cal Od3a6]} Qc8 {[%emt 0:02:31]} 22. Rc3 {[%emt 0:00:30]} Rxc3 {[%emt 0:02:30]} 23. bxc3 {[%emt 0:00:01]} a5 {[%emt 0:01:09]} 24. Rb1 {[%emt 0:00:44]} Ba6 {[%emt 0:00:18] aiming for ...Bxd3.} 25. Nc6 {[%emt 0:01:15] [#] And now Ne7+ would win.} Kh8 $1 {[%emt 0:05:56]} 26. Na7 {[%emt 0:06:03]} Qd7 {[%emt 0:00:38]} (26... Rxa7 $2 27. Qxa7 Bxd3 28. Rb8 Qxb8 29. Qxb8+ $18) (26... Nd7 $5 {[%cal Rd7b6]} 27. Nxc8 (27. Bxa6 Qxc3 28. Qb7 Rb8 $11) 27... Nxb6 28. Bxa6 (28. Nxb6 Bxd3 29. Rb3 Ra7 $11) 28... Nxc8 $11) 27. Qxa6 {[%emt 0:01:09]} Qxa7 {[%emt 0:02:28]} 28. Qd6 {[%emt 0:03:44] The position is equal.} Rc8 {[%emt 0:02:04]} 29. h3 {[%emt 0:04:39]} Ne4 {[%emt 0:11:04]} 30. Bxe4 {[%emt 0:00:36]} dxe4 $11 {[%emt 0:00:05][%mdl 4096] Endgame KQR-KQR} 31. Qg3 {[%emt 0:02:01]} Qa6 {[%emt 0:02:24]} 32. Rb8 {[%emt 0:04:30]} Rxb8 {[%emt 0:01:30]} 33. Qxb8+ {[%emt 0:00:02] KQ-KQ} Kh7 {[%emt 0:00:07]} 34. Qb1 {[%emt 0:00:16]} f5 {[%emt 0:01:06]} 35. Qf1 {[%emt 0:00:29] Inhibits Qe2.} Qxf1+ {[%emt 0:11:53]} 36. Kxf1 {[%emt 0:00:03]} g5 {[%emt 0:00:05]} 37. g4 {[%emt 0:05:07]} f4 {[%emt 0:00:23]} 38. Ke2 {[%emt 0:00:10] Weighted Error Value: White=0.11 (very precise) /Black=0.11 (very precise)} 1/2-1/2

[Event "37th ECCC 2022"]
[Site "Mayrhofen"]
[Date "2022.10.06"]
[Round "4.54"]
[White "Gerhold, Michael"]
[Black "Givon, Asaf"]
[Result "0-1"]
[ECO "D33"]
[WhiteElo "2182"]
[BlackElo "2434"]
[Annotator "TA"]
[PlyCount "68"]
[EventDate "2022.10.03"]
[EventType "team-tourn"]
[EventCountry "AUT"]
[SourceTitle "playchess.com"]
[Source "ChessBase"]
[SourceQuality "1"]
[TimeControl "40/5400+30:1800+30"]

{[%evp 16,68,36,45,38,32,39,39,37,29,50,5,19,8,8,0,0,0,0,0,13,-93,-36,-118,-74,-150,-37,-46,-11,-9,-9,-9,-9,-19,-16,-16,-16,-22,-16,-27,-27,-209,-214,-268,-268,-527,-517,-497,-472,-628,-600,-600,-579,-4934,-2095]} 1. Nf3 {[%emt 0:00:07]} Nf6 {[%emt 0:01:01]} 2. c4 {[%emt 0:00:33]} c5 {[%emt 0:00:26]} 3. Nc3 {[%emt 0:00:14]} e6 {[%emt 0:00:06][%cal Be7e6,Be6d5,Bd5d4][%mdl 32]} 4. g3 {[%emt 0:00:32]} d5 {[%emt 0:00:06]} 5. cxd5 {[%emt 0:00:20]} exd5 {[%emt 0:00:03]} 6. d4 {[%emt 0:01:13]} Nc6 {[%emt 0:00:05]} 7. Bg2 {[%emt 0:00:14]} cxd4 {[%emt 0:00:14] seems to push 7...Be7 aside.} 8. Nxd4 {[%emt 0:00:25]} Bc5 {[%emt 0:00:04]} 9. Nb3 {[%emt 0:02:26][%csl LRc5,LRd5]} Bb6 {[%emt 0:00:10] D33: Tarrasch Defence: 6 g3 sidelines.} 10. O-O {[%emt 0:00:39]} (10. Bxd5 Nb4 11. Bf3 Qxd1+ 12. Kxd1 Ng4 13. Bxg4 Bxg4 $11) 10... d4 {[%emt 0:00:03]} 11. Na4 {[%emt 0:01:36]} O-O {[%emt 0:00:11] White is slightly better.} 12. Bg5 {[%emt 0:04:48]} Re8 {[%emt 0:00:27]} 13. Rc1 {[%emt 0:03:03]} h6 {[%emt 0:04:16]} 14. Bxf6 {[%emt 0:08:43]} (14. Bxc6 bxc6 15. Bxf6 (15. Nxb6 axb6 16. Bxf6 Qxf6 $17) 15... Qxf6 $15) 14... Qxf6 {[%emt 0:00:04]} 15. Nac5 {[%emt 0:05:53]} h5 {[%emt 0:16:49] [#]} 16. Re1 $146 {[%emt 0:15:52]} ({Predecessor:} 16. Nd3 h4 17. Nbc5 Rb8 18. a3 hxg3 19. hxg3 Qh6 20. Bf3 g5 21. Qb3 Kg7 22. Rfd1 {1-0 (28) Nihal,S (2620)-Krzyzanowski,M (2521) Chess.com INT 2020}) 16... h4 {[%emt 0:15:42]} 17. Qd2 {[%emt 0:07:42]} Re5 {[%emt 0:20:25]} 18. e3 {[%emt 0:12:13]} (18. Nd3 $11 {keeps the balance.}) 18... h3 {[%emt 0:08:41]} ({Black should play} 18... dxe3 $1 $17 19. Rxe3 h3) 19. Bh1 {[%emt 0:01:22]} ({White has to play} 19. exd4 $15 Rxe1+ 20. Rxe1 hxg2 21. Re8+ Kh7 22. Ne4) 19... Bg4 {[%emt 0:00:23] ...Rd8 is the strong threat.} 20. exd4 {[%emt 0:05:35] [#]} (20. Ne4 $142 Qf5 21. Nxd4 Nxd4 22. exd4) 20... Rxe1+ {[%emt 0:00:32]} (20... Nxd4 $1 $17 {[%mdl 512] ( -> ...Nf3+)} 21. Rxe5 (21. Nxd4 $2 Rxc5 22. Rxc5 Bxc5 $19) 21... Nxb3 22. axb3 (22. Nxb3 Qxe5 23. Qc3 Qe2 $17) 22... Qxe5) 21. Rxe1 $15 {[%emt 0:01:59] [#]} Nxd4 $1 {[%emt 0:08:16][%mdl 64] Remove Defender} 22. Qxd4 {[%emt 0:03:28]} ({Don't blunder} 22. Nxd4 $2 Bxc5 23. Nb3 Rd8 $19) 22... Qxd4 {[%emt 0:00:12][%mdl 64] Remove Defender} 23. Nxd4 {[%emt 0:00:04] Hoping for b4.} Bxc5 {[%emt 0:00:05]} 24. Nb3 {[%emt 0:01:43]} Bb6 {[%emt 0:00:16]} 25. Bxb7 {[%emt 0:00:33]} Rd8 {[%emt 0:00:52] White must now prevent ...a5.} 26. Kf1 {[%emt 0:02:03]} a5 {[%emt 0:02:01][%mdl 1024] Strongly threatening ...a4. Black has compensation.} 27. Bc6 {[%emt 0:01:37]} Rd6 {[%emt 0:01:19]} 28. Rc1 {[%emt 0:04:16] [#] Loses the game.} (28. Bb5 $11 {and White stays safe.}) 28... Rf6 $1 $19 {[%emt 0:01:03]} 29. Rc2 {[%emt 0:00:53]} Bd1 {[%emt 0:01:25] This bishop pair is nice.} 30. Rc3 {[%emt 0:03:19]} (30. Rc4 Bxb3 31. axb3) 30... Rxf2+ {[%emt 0:04:48] Black is clearly winning.} ({Wrong is} 30... Bxb3 $2 31. axb3 Rxf2+ 32. Ke1 $19) 31. Ke1 {[%emt 0:00:05]} Bg4 {[%emt 0:00:15]} 32. Nc5 {[%emt 0:01:17]} Re2+ {[%emt 0:00:21]} 33. Kf1 {[%emt 0:00:06]} Rxh2 {[%emt 0:03:38]} 34. Bd7 {[%emt 0:04:51]} Rh1+ {[%emt 0:00:22] Weighted Error Value: White=0.75/Black=0.14 (very precise)} 0-1

[Event "37th ECCC 2022"]
[Site "Mayrhofen"]
[Date "2022.10.06"]
[Round "4.55"]
[White "Hauge, Lars Oskar"]
[Black "Heimann, Andreas"]
[Result "1/2-1/2"]
[ECO "C27"]
[WhiteElo "2531"]
[BlackElo "2573"]
[Annotator "TA"]
[PlyCount "79"]
[EventDate "2022.10.03"]
[EventType "team-tourn"]
[EventCountry "AUT"]
[SourceTitle "playchess.com"]
[Source "ChessBase"]
[SourceQuality "1"]
[TimeControl "40/5400+30:1800+30"]

{[%evp 10,79,-9,0,-2,-17,-14,-16,0,-45,-14,-22,-12,-22,7,-10,0,-11,8,13,13,11,30,26,21,7,10,5,6,5,3,2,6,7,7,0,0,0,0,6,6,0,6,8,83,84,77,71,70,42,48,14,21,16,25,0,0,0,0,0,0,0,0,0,0,-8,0,-31,0,0,0,0]} 1. e4 {[%emt 0:01:08]} e5 {[%emt 0:00:04]} 2. Nc3 {[%emt 0:01:02]} Nf6 {[%emt 0:00:09]} 3. Bc4 {[%emt 0:01:34]} Nxe4 {[%emt 0:00:47]} 4. Qh5 {[%emt 0:03:36]} Nd6 {[%emt 0:00:06]} 5. Bb3 {[%emt 0:00:05]} Be7 {[%emt 0:00:35]} 6. Qxe5 {[%emt 0:00:13]} O-O {[%emt 0:02:23] C27: Vienna Game: 2...Nf6 3 Bc4 Nxe4.} 7. d4 {[%emt 0:00:29]} Nc6 {[%emt 0:13:46]} 8. Qf4 {[%emt 0:00:48]} (8. Qe3 Nf5 9. Qd3 Nfxd4 $17) 8... b5 {[%emt 0:21:58] [#]} 9. Be3 $146 {[%emt 0:00:23]} ({Predecessor:} 9. Nf3 a5 10. a4 b4 11. Nd5 Ba6 12. Be3 Bc4 13. Bxc4 Nxc4 14. O-O Bd6 15. Qf5 {1-0 (29) Firouzja,A (2728)-Gozzoli,Y (2608) Europe Echecs INT 2020}) 9... Bb7 {[%emt 0:02:14]} 10. Nf3 {[%emt 0:01:18]} Na5 {[%emt 0:01:51]} 11. O-O {[%emt 0:04:44]} b4 {[%emt 0:09:37]} 12. Ne2 {[%emt 0:03:37]} Ne4 {[%emt 0:02:41]} 13. Ng3 {[%emt 0:03:41]} Bd6 {[%emt 0:13:13]} 14. Qf5 {[%emt 0:00:22]} Nxb3 {[%emt 0:01:25]} 15. axb3 {[%emt 0:00:53]} Nxg3 {[%emt 0:02:39]} 16. hxg3 {[%emt 0:04:16]} Qe7 {[%emt 0:00:02]} 17. Rfe1 {[%emt 0:03:53] [#] Hoping for Bg5.} Qe4 {[%emt 0:02:29]} 18. Qxe4 {[%emt 0:00:58]} Bxe4 {[%emt 0:00:03]} 19. c4 $40 {[%emt 0:01:05][%mdl 128] Black needs to defend precisely.} bxc3 $1 {[%emt 0:03:32]} 20. bxc3 {[%emt 0:00:20]} Bxf3 {[%emt 0:00:34]} 21. gxf3 {[%emt 0:00:10]} a5 {[%emt 0:00:02]} 22. Kf1 {[%emt 0:03:02]} f5 {[%emt 0:02:59]} 23. Bd2 {[%emt 0:00:23]} Rfb8 {[%emt 0:06:49]} 24. Reb1 {[%emt 0:01:28]} Kf7 {[%emt 0:02:48]} 25. Ke2 {[%emt 0:00:54]} Ke6 {[%emt 0:03:49]} 26. Kd3 {[%emt 0:00:29]} c5 {[%emt 0:00:28]} (26... h5 $11 {remains equal.}) 27. Be3 {[%emt 0:06:45]} cxd4 {[%emt 0:00:45]} 28. Bxd4 {[%emt 0:00:05]} g6 {[%emt 0:00:05]} 29. Rh1 {[%emt 0:10:43]} h5 {[%emt 0:00:29]} 30. g4 {[%emt 0:00:16]} fxg4 {[%emt 0:00:29]} ({But not} 30... Rxb3 31. gxh5 gxh5 32. Rag1 $16) 31. fxg4 {[%emt 0:00:08]} hxg4 {[%emt 0:00:04]} 32. Rh7 {[%emt 0:00:10]} Be5 {[%emt 0:00:56]} (32... Rxb3 $2 33. Kc4 Rxc3+ 34. Kxc3 $18) 33. Bxe5 {[%emt 0:01:38]} Kxe5 {[%emt 0:00:05]} 34. Rxd7 {[%emt 0:01:34]} Rxb3 $11 {[%emt 0:01:10][%mdl 4096] Endgame KRR-KRR} 35. Re1+ {[%emt 0:02:24]} Kf6 {[%emt 0:00:03]} 36. Rd6+ {[%emt 0:00:52]} Kf5 {[%emt 0:00:07]} 37. Kd4 {[%emt 0:03:44] [#] Threatening mate with Re5+.} Kg5 {[%emt 0:02:46]} 38. Rd5+ {[%emt 0:03:28]} Kf6 {[%emt 0:00:07]} 39. Rd6+ {[%emt 0:08:34]} Kg5 {[%emt 0:00:06]} 40. Ree6 {[%emt 0:07:23] Weighted Error Value: White=0.08 (flawless) /Black=0.10 (very precise)} 1/2-1/2

[Event "37th ECCC 2022"]
[Site "Mayrhofen"]
[Date "2022.10.06"]
[Round "4.56"]
[White "Brunner, Nicolas"]
[Black "Ertan, Can"]
[Result "1/2-1/2"]
[ECO "E15"]
[WhiteElo "2448"]
[BlackElo "2372"]
[Annotator "TA"]
[PlyCount "104"]
[EventDate "2022.10.03"]
[EventType "team-tourn"]
[EventCountry "AUT"]
[SourceTitle "playchess.com"]
[Source "ChessBase"]
[SourceQuality "1"]
[TimeControl "40/5400+30:1800+30"]

{[%evp 15,104,18,22,12,10,13,53,34,37,37,34,0,12,11,22,22,44,15,28,5,5,0,0,0,0,0,0,-8,-10,-17,0,-23,-18,-14,0,-17,0,0,0,0,33,0,49,41,41,41,33,0,0,0,0,0,0,0,8,8,8,5,46,0,0,0,0,0,12,0,0,0,0,0,0,0,0,0,0,0,0,0,0,0,0,0,0,0,0,0,0,0,0,0,0]} 1. d4 {[%emt 0:00:03]} Nf6 {[%emt 0:00:25]} 2. c4 {[%emt 0:00:05]} e6 {[%emt 0:00:02]} 3. Nf3 {[%emt 0:00:06]} b6 {[%emt 0:00:04]} 4. g3 {[%emt 0:00:05]} Ba6 {[%emt 0:00:04]} 5. b3 {[%emt 0:00:07]} Bb4+ {[%emt 0:00:08]} 6. Bd2 {[%emt 0:00:06]} Be7 {[%emt 0:00:03]} 7. Nc3 {[%emt 0:00:13]} d5 {[%emt 0:01:09] now supersedes 7...0-0.} 8. cxd5 {[%emt 0:00:11]} Nxd5 {[%emt 0:01:04]} 9. Bg2 {[%emt 0:05:06] E15: Queen's Indian: 4 g3 sidelines, 4 g3 Ba6 and 4 g3 Bb7 early deviations.} Nd7 {[%emt 0:03:47]} 10. O-O {[%emt 0:00:44] [#]} N7f6 $146 {[%emt 0:01:47]} ({Predecessor:} 10... O-O 11. Nxd5 exd5 12. Rc1 Re8 13. Rc2 Bd6 14. Bf4 Nf6 15. Bxd6 Qxd6 16. Re1 Bb7 17. Qc1 c6 18. Qf4 Qb4 19. Rec1 a5 20. Ne5 a4 {1-0 (40) Markus,R (2595)-Shchekachev,A (2570) Austria 2006}) 11. Nxd5 {[%emt 0:08:17] White is slightly better.} exd5 {[%emt 0:00:08]} 12. Ne5 {[%emt 0:00:51]} O-O {[%emt 0:07:15]} 13. Bg5 {[%emt 0:09:45]} Qd6 {[%emt 0:04:37] Inhibits Nc6.} 14. Re1 {[%emt 0:07:54]} Bb7 {[%emt 0:18:29]} 15. Rc1 {[%emt 0:01:18]} c5 {[%emt 0:00:26]} 16. e3 {[%emt 0:00:50]} h6 {[%emt 0:06:24]} 17. Bxf6 {[%emt 0:00:54]} Bxf6 {[%emt 0:00:08]} 18. f4 {[%emt 0:01:41]} Rac8 {[%emt 0:03:13]} 19. Qd2 {[%emt 0:06:35]} Rc7 {[%emt 0:13:50]} 20. Bf3 {[%emt 0:13:17]} Rfc8 {[%emt 0:00:52]} 21. Bg4 {[%emt 0:01:20]} Rd8 {[%emt 0:00:32]} 22. Bf3 {[%emt 0:10:38]} Bc8 {[%emt 0:00:49]} 23. Rc3 {[%emt 0:02:09]} Be6 {[%emt 0:00:55]} 24. Rec1 {[%emt 0:00:38]} Rdc8 {[%emt 0:00:13]} 25. Qb2 {[%emt 0:06:51]} Be7 {[%emt 0:03:53]} 26. Qc2 {[%emt 0:05:35]} f6 {[%emt 0:00:43]} 27. Ng6 {[%emt 0:00:29][%cal Be5g6,Bg6f4,Bf4e6][%mdl 32]} Bd8 {[%emt 0:00:10]} 28. Qd3 {[%emt 0:04:15]} (28. f5 $5 {[%cal Rf5e6]} Bf7 29. dxc5 Qxc5 30. Rxc5 Rxc5 {[#]} 31. Qxc5 $1 (31. Ne7+ $2 Bxe7 32. Qxc5 Bxc5 $19) 31... Rxc5 32. Rxc5 bxc5 33. Nf4 $14) 28... Qd7 {[%emt 0:10:41]} (28... c4 $11 {might be stronger.} 29. bxc4 Rxc4) 29. dxc5 $14 {[%emt 0:00:19]} bxc5 {[%emt 0:02:35]} 30. f5 {[%emt 0:01:43]} Bf7 {[%emt 0:00:24]} 31. Nf4 {[%emt 0:01:09][%cal Rf3d5]} (31. Rd1 $5 {[%cal Rf3d5]}) 31... c4 {[%emt 0:01:58]} 32. bxc4 {[%emt 0:07:28]} dxc4 {[%emt 0:00:19]} 33. Qxd7 {[%emt 0:00:06]} Rxd7 {[%emt 0:00:03]} 34. Ne6 {[%emt 0:00:24]} Bb6 {[%emt 0:01:23]} 35. Rxc4 {[%emt 0:00:37]} Bxe3+ {[%emt 0:00:09]} 36. Kh1 {[%emt 0:00:12]} Re8 {[%emt 0:03:07]} 37. Rc7 {[%emt 0:01:15]} (37. Bc6 $14 {is more appropriate.} Rxe6 38. fxe6 (38. Bxd7 Re7 $17) 38... Bxe6 39. R4c3) 37... Rxc7 $11 {[%emt 0:08:30] The position is equal.} 38. Rxc7 {[%emt 0:00:04]} g6 {[%emt 0:00:20]} ({Don't take} 38... Bxe6 39. fxe6 Bb6 40. Rb7 $14) 39. g4 {[%emt 0:00:23]} h5 {[%emt 0:07:17]} 40. h3 {[%emt 0:00:07]} Bb6 {[%emt 0:01:17]} 41. Rb7 {[%emt 0:30:57]} Rc8 {[%emt 0:09:09]} 42. Bd5 {[%emt 0:00:00] [#] aiming for fxg6.} Rc1+ {[%emt 0:00:56]} 43. Kg2 {[%emt 0:00:00] And now fxg6 would win.} Rc2+ {[%emt 0:00:06]} 44. Kf3 {[%emt 0:00:00] Hoping for fxg6.} Rc3+ {[%emt 0:00:14]} 45. Ke2 {[%emt 0:00:00] Black must now prevent Nf4.} gxf5 {[%emt 0:01:24]} (45... Rxh3 $2 46. Rb8+ Kh7 47. Nf8+ Kg7 48. Rb7 (48. Ne6+ Bxe6 49. Bxe6 gxf5 $17) 48... Rh2+ 49. Kd3 gxf5 50. Rxf7+ Kh6 51. gxf5 $18) 46. gxf5 {[%emt 0:00:00]} Re3+ {[%emt 0:01:56]} 47. Kd2 {[%emt 0:00:00]} Re5 {[%emt 0:01:04]} 48. Bb3 {[%emt 0:00:00]} Rxf5 {[%emt 0:00:26]} 49. Rb8+ {[%emt 0:00:00]} Kh7 {[%emt 0:00:07]} 50. Rb7 {[%emt 0:00:00]} Kg8 {[%emt 0:00:22]} 51. Rb8+ {[%emt 0:00:00]} Kh7 {[%emt 0:00:19]} 52. Rb7 {[%emt 0:00:00]} Kg8 {[%emt 0:00:04] Weighted Error Value: White=0.07 (flawless) /Black=0.08 (flawless)} 1/2-1/2